fUST/lending_fUST_20260606
["ID","MTS","AMOUNT","RATE_DAILY","PERIOD"]
[424284453,1780748733000,-908.10953022,0.00014805,2]
[424284454,1780748746000,-908.10953022,0.00014805,2]
[424284455,1780748825000,-236.35262627,0.00014805,2]
[424284456,1780748844000,-1770.97962422,0.00014805,2]
[424284457,1780748852000,-747.65570927,0.00014805,2]
[424284461,1780748948000,-388.33004129,0.00014805,2]
[424284523,1780749032000,-500.0,0.00019348,2]
[424284526,1780749032000,-500.0,0.00019348,2]
[424284519,1780749032000,-500.0,0.00019348,2]
[424284525,1780749032000,-500.0,0.00019348,2]
[424284508,1780749032000,-500.0,0.00019348,2]
[424284507,1780749032000,-500.0,0.00019348,2]
[424284499,1780749032000,-177.7695713,0.00015805,2]
[424284521,1780749032000,-500.0,0.00019348,2]
[424284517,1780749032000,-431.1988376,0.00019348,2]
[424284501,1780749032000,-175.0,0.0001589,3]
[424284497,1780749032000,-5000.0,0.00014805,2]
[424284503,1780749032000,-451.86533646,0.00018981,2]
[424284505,1780749032000,-1200.0,0.00019347,2]
[424284510,1780749032000,-500.0,0.00019348,2]
[424284528,1780749032000,-500.0,0.00019348,2]
[424284514,1780749032000,-500.0,0.00019348,2]
[424284547,1780749032000,-886.3654462,0.00019352,2]
[424284549,1780749032000,-4341.27157811,0.00019352,2]
[424284536,1780749032000,-259.08470469,0.00019348,2]
[424284538,1780749032000,-500.0,0.00019348,2]
[424284534,1780749032000,-484.52861357,0.00019348,2]
[424284545,1780749032000,-184.17834032,0.00019348,2]
[424284515,1780749032000,-500.0,0.00019348,2]
[424284542,1780749032000,-500.0,0.00019348,2]
[424284512,1780749032000,-500.0,0.00019348,2]
[424284532,1780749032000,-500.0,0.00019348,2]
[424284540,1780749032000,-500.0,0.00019348,2]
[424284544,1780749032000,-500.0,0.00019348,2]
[424284530,1780749032000,-500.0,0.00019348,2]
[424284686,1780749038000,-500.0,0.00020693,2]
[424284678,1780749038000,-201.86972486,0.00020693,2]
[424284677,1780749038000,-500.0,0.00020693,2]
[424284679,1780749038000,-308.2171933,0.00020693,2]
[424284675,1780749038000,-500.0,0.00020693,2]
[424284674,1780749038000,-500.0,0.00020693,2]
[424284670,1780749038000,-186.64,0.00019879,2]
[424284676,1780749038000,-500.0,0.00020693,2]
[424284673,1780749038000,-500.0,0.00020693,2]
[424284688,1780749038000,-500.0,0.00020693,2]
[424284672,1780749038000,-500.0,0.00020693,2]
[424284666,1780749038000,-2744.6739879,0.00019617,2]
[424284667,1780749038000,-2066.7221863,0.00019691,2]
[424284668,1780749038000,-600.0,0.00019736,2]
[424284665,1780749038000,-17911.87939647,0.00019352,2]
[424284664,1780749038000,-26.26140292,0.00019352,2]
[424284671,1780749038000,-813.35760563,0.00019895,2]
[424284669,1780749038000,-870.5516993,0.00019753,2]
[424284683,1780749038000,-500.0,0.00020693,2]
[424284689,1780749038000,-500.0,0.00020693,2]
[424284699,1780749038000,-2866.49295455,0.00020694,2]
[424284701,1780749038000,-14554.76961443,0.00020694,2]
[424284700,1780749038000,-19401.29810783,0.00020694,2]
[424284696,1780749038000,-500.0,0.00020693,2]
[424284697,1780749038000,-185.0,0.00020693,2]
[424284698,1780749038000,-17014.67555234,0.00020694,2]
[424284695,1780749038000,-500.0,0.00020693,2]
[424284680,1780749038000,-500.0,0.00020693,2]
[424284692,1780749038000,-500.0,0.00020693,2]
[424284690,1780749038000,-500.0,0.00020693,2]
[424284694,1780749038000,-500.0,0.00020693,2]
[424284691,1780749038000,-500.0,0.00020693,2]
[424284685,1780749038000,-500.0,0.00020693,2]
[424284681,1780749038000,-500.0,0.00020693,2]
[424284684,1780749038000,-500.0,0.00020693,2]
[424284682,1780749038000,-500.0,0.00020693,2]
[424284693,1780749038000,-550.0,0.00020693,2]
[424284687,1780749038000,-500.0,0.00020693,2]
[424284708,1780749040000,-361.30483241,0.00020694,2]
[424284707,1780749040000,-1842.40989433,0.00020694,2]
[424284728,1780749043000,-942.35491879,0.00020694,2]
[424284750,1780749046000,-8567.49650068,0.00020694,2]
[424284749,1780749046000,-7408.94175514,0.00020694,2]
[424284751,1780749114000,-3590.73325315,0.00020487,2]
[424284763,1780750050000,-88.20903989,0.00018587,2]
[424284762,1780750050000,-161.0,0.0001589,3]
[424284764,1780750051000,-2001.78547784,0.00018587,2]
[424284766,1780750155000,-357.59877899,0.00018401,2]
[424284869,1780750238000,-138.28564059,0.00019026,2]
[424284868,1780750238000,-1920.99235668,0.00018401,2]
[424284866,1780750238000,-152.0,0.00014534,7]
[424284867,1780750238000,-2721.40886433,0.00018401,2]
[424284887,1780750246000,-5000.0,0.00018836,2]
[424284888,1780750246000,-111.71435941,0.00019026,2]
[424284889,1780750246000,-466.6296297,0.00019276,2]
[424284890,1780750246000,-186.64,0.00019877,2]
[424284891,1780750246000,-157.91199,0.00019906,2]
[424284892,1780750246000,-982.03157283,0.00020294,2]
[424284897,1780750246000,-215.75203531,0.00020393,2]
[424284893,1780750246000,-2450.65797228,0.00020294,2]
[424284895,1780750246000,-300.0,0.00020392,2]
[424284894,1780750246000,-1200.0,0.00020392,2]
[424284900,1780750246000,-59.17175769,0.00020393,2]
[424284898,1780750246000,-500.0,0.00020393,2]
[424284899,1780750246000,-500.0,0.00020393,2]
[424284896,1780750246000,-300.0,0.00020392,2]
[424284905,1780750247000,-620.8088074,0.00020393,2]
[424284902,1780750247000,-500.0,0.00020393,2]
[424284912,1780750247000,-164.88637112,0.00020393,2]
[424284901,1780750247000,-440.82824231,0.00020393,2]
[424284913,1780750247000,-500.0,0.00020393,2]
[424284903,1780750247000,-500.0,0.00020393,2]
[424284904,1780750247000,-500.0,0.00020393,2]
[424284908,1780750247000,-185.34295029,0.00020393,2]
[424284907,1780750247000,-500.0,0.00020393,2]
[424284910,1780750247000,-500.0,0.00020393,2]
[424284909,1780750247000,-314.65704971,0.00020393,2]
[424284911,1780750247000,-500.0,0.00020393,2]
[424284914,1780750247000,-500.0,0.00020393,2]
[424284915,1780750247000,-500.0,0.00020393,2]
[424284916,1780750247000,-431.14898285,0.00020393,2]
[424284906,1780750247000,-500.0,0.00020393,2]
[424285034,1780751138000,-205.26982633,0.00017463,2]
[424285033,1780751138000,-152.0,0.00014534,7]
[424285040,1780751231000,-1303.73061847,0.00017639,2]
[424285038,1780751231000,-152.0,0.00014529,7]
[424285041,1780751231000,-87.34832964,0.00017817,2]
[424285039,1780751231000,-152.0,0.00017463,2]
[424285044,1780751360000,-5000.0,0.00017288,2]
[424285045,1780751360000,-243.89516486,0.00017817,2]
[424285046,1780751360000,-297.00141532,0.00018675,2]
[424285043,1780751360000,-1159.81487735,0.00017115,2]
[424285047,1780751360000,-534.60254757,0.00018675,2]
[424285048,1780751360000,-950.40452901,0.00018675,2]
[424285050,1780751360000,-179.24543092,0.00018999,2]
[424285052,1780751360000,-1483.52206951,0.00019044,2]
[424285054,1780751360000,-1200.0,0.00019656,2]
[424285051,1780751360000,-189.4949645,0.00018999,2]
[424285049,1780751360000,-507.19578583,0.00018675,2]
[424285060,1780751360000,-310.46980691,0.00019658,2]
[424285059,1780751360000,-1623.02651464,0.00019658,2]
[424285058,1780751360000,-912.95241449,0.00019658,2]
[424285053,1780751360000,-300.0,0.00019656,2]
[424285056,1780751360000,-500.0,0.00019657,2]
[424285055,1780751360000,-300.0,0.00019656,2]
[424285057,1780751360000,-418.05272904,0.00019657,2]
[424285076,1780751432000,-189.56294521,0.00018675,2]
[424285074,1780751432000,-243.89516486,0.00016926,2]
[424285087,1780751432000,-792.73890903,0.00019462,2]
[424285082,1780751432000,-3462.24671274,0.00018675,2]
[424285092,1780751432000,-1489.05957598,0.00019462,2]
[424285084,1780751432000,-1200.0,0.00019461,2]
[424285090,1780751432000,-586.94081868,0.00019462,2]
[424285150,1780751438000,-859.2776262,0.0001978,2]
[424285143,1780751438000,-500.0,0.00019657,2]
[424285151,1780751438000,-331.61,0.00019837,2]
[424285144,1780751438000,-500.0,0.00019657,2]
[424285142,1780751438000,-2131.26069631,0.00019462,2]
[424285145,1780751438000,-552.32049337,0.00019657,2]
[424285148,1780751438000,-2174.44286439,0.00019658,2]
[424285146,1780751438000,-679.51339512,0.00019658,2]
[424285149,1780751438000,-3397.56697561,0.00019658,2]
[424285153,1780751438000,-2053.92148571,0.00019838,2]
[424285147,1780751438000,-1223.12411122,0.00019658,2]
[424285152,1780751438000,-8732.34901261,0.00019838,2]
[424285168,1780751444000,-600.22421128,0.00019838,2]
[424285167,1780751444000,-520.98665842,0.00019838,2]
[424285180,1780751446000,-1152.0,0.00019838,2]
[424285183,1780751604000,200.1413837,0.00024244,110]
[424285182,1780751604000,200.1413837,0.00024244,110]
[424285184,1780751619000,189.28,0.00010001,2]
[424285186,1780751619000,189.29,0.00010001,2]
[424285185,1780751619000,189.28,0.00010001,2]
[424285245,1780752353000,-303.02464208,0.00012128,2]
[424285249,1780752383000,-223.18,0.00012128,2]
[424285251,1780752397000,-125.79356553,0.00012128,2]
[424285254,1780752436000,-747.65570927,0.00012251,2]
[424285257,1780752451000,-1763.3895566,0.00012251,2]
[424285256,1780752451000,-1660.24257346,0.00012251,2]
[424285259,1780752464000,-828.71216067,0.00012251,2]
[424285265,1780752518000,-355.0,0.00012251,2]
[424285266,1780752533000,-355.0,0.00012251,2]
[424285267,1780752546000,-3577.02753078,0.00012251,2]
[424285268,1780752559000,-712.97246922,0.00012251,2]
[424285269,1780752560000,-2913.52219044,0.00012251,2]
[424285270,1780752572000,-183.32538201,0.00012251,2]
[424285271,1780752572000,-866.84306514,0.00012251,2]
[424285272,1780752572000,-2460.80324891,0.00012251,2]
[424285275,1780752572000,-357.27,0.000125,2]
[424285274,1780752572000,-1200.0,0.00012374,2]
[424285276,1780752572000,-172.48005482,0.0001361,2]
[424285277,1780752572000,-1672.46690609,0.00013611,2]
[424285273,1780752572000,-177.0,0.0001226,2]
[424285306,1780752632000,-152.0,0.00014538,7]
[424285308,1780752632000,-177.0,0.0001589,3]
[424285313,1780752632000,-765.36957831,0.00017817,2]
[424285311,1780752632000,-1200.0,0.00017816,2]
[424285309,1780752632000,-319.005,0.00017591,2]
[424285315,1780752632000,-178.0,0.0001812,2]
[424285314,1780752632000,-1672.19876003,0.00017817,2]
[424285322,1780752632000,-500.0,0.00019176,2]
[424285317,1780752632000,-2257.06735563,0.00018675,2]
[424285316,1780752632000,-1445.96907668,0.00018675,2]
[424285320,1780752632000,-1280.63681281,0.00019077,2]
[424285319,1780752632000,-180.899,0.00018755,2]
[424285323,1780752632000,-500.0,0.00019176,2]
[424285321,1780752632000,-500.0,0.00019176,2]
[424285318,1780752632000,-190.22726229,0.00018755,2]
[424285331,1780752633000,-500.0,0.00019176,2]
[424285332,1780752633000,-391.5664411,0.00019176,2]
[424285328,1780752633000,-500.0,0.00019176,2]
[424285325,1780752633000,-500.0,0.00019176,2]
[424285327,1780752633000,-500.0,0.00019176,2]
[424285324,1780752633000,-500.0,0.00019176,2]
[424285329,1780752633000,-500.0,0.00019176,2]
[424285333,1780752633000,-2089.41954813,0.00019177,2]
[424285330,1780752633000,-500.0,0.00019176,2]
[424285326,1780752633000,-500.0,0.00019176,2]
[424285363,1780752637000,-644.8428423,0.00019177,2]
[424285367,1780752637000,-500.0,0.00019426,2]
[424285361,1780752637000,-14755.10730457,0.00019177,2]
[424285365,1780752637000,-189.28533333,0.00019177,7]
[424285376,1780752638000,-189.28533333,0.00019444,7]
[424285373,1780752638000,-436.10286998,0.00019426,2]
[424285371,1780752638000,-500.0,0.00019426,2]
[424285369,1780752638000,-500.0,0.00019426,2]
[424285374,1780752638000,-213.79123478,0.00019426,2]
[424285389,1780752638000,-14452.56778394,0.00019538,2]
[424285378,1780752638000,-613.66117391,0.00019469,2]
[424285382,1780752638000,-323.71181366,0.000195,2]
[424285380,1780752638000,-219.701602,0.00019474,2]
[424285384,1780752638000,-2729.28854646,0.00019538,2]
[424285386,1780752638000,-20575.99200276,0.00019538,2]
[424285392,1780752638000,-706.93849319,0.00019538,2]
[424285987,1780752642000,-1998.77092,0.00019538,2]
[424286030,1780752643000,-48879.14628285,0.00019538,2]
[424286027,1780752643000,-534491.18668262,0.00019538,2]
[424286322,1780752645000,-927.19930424,0.00019538,2]
[424286313,1780752645000,-5500.0,0.00019538,2]
[424286347,1780752646000,-253.7425319,0.00019538,2]
[424286345,1780752646000,-4453.21873479,0.00019538,2]
[424287381,1780752693000,-152.0,0.00014535,7]
[424287382,1780752728000,-5000.0,0.00019343,2]
[424287384,1780752917000,-530.0,0.0001276,2]
[424287428,1780752970000,-199.0,0.00016466,3]
[424287429,1780753025000,-166.66666667,0.00017256,2]
[424287430,1780753077000,-167.50508349,0.00017356,2]
[424287431,1780753131000,-1650.0,0.00017993,2]
[424287432,1780753184000,-1200.0,0.00018557,2]
[424287439,1780753237000,-173.0,0.00015918,3]
[424287441,1780753291000,-5492.9243616,0.00018558,2]
[424287448,1780753344000,-300.0,0.00018632,2]
[424287454,1780753397000,-1328.0875329,0.00018575,2]
[424287604,1780753631000,-159.0,0.00015918,3]
[424287603,1780753631000,-152.0,0.00014535,7]
[424287605,1780753631000,-1666.94588572,0.0001739,2]
[424287606,1780753650000,-249.20903989,0.0001739,2]
[424287645,1780753832000,-809.5546247,0.00017216,2]
[424287646,1780753832000,-425.97873272,0.00017216,2]
[424287644,1780753832000,-187.06671634,0.00017044,2]
[424287647,1780753832000,-3764.46664258,0.00017216,2]
[424287648,1780753832000,-300.0,0.00017741,2]
[424287649,1780753832000,-191.85115986,0.00017742,2]
[424287651,1780753832000,-342.24876554,0.00017742,2]
[424287650,1780753832000,-219.25846841,0.00017742,2]
[424287652,1780753832000,-206.79725079,0.00017742,2]
[424287643,1780753832000,-2599.51949031,0.00016874,2]
[424287662,1780753832000,-229.68300898,0.00017921,2]
[424287654,1780753832000,-236.33971519,0.00017742,2]
[424287657,1780753832000,-500.0,0.00017921,2]
[424287655,1780753832000,-368.91152418,0.00017742,2]
[424287658,1780753832000,-500.0,0.00017921,2]
[424287660,1780753832000,-500.0,0.00017921,2]
[424287656,1780753832000,-180.812198,0.00017826,2]
[424287663,1780753832000,-1028.81176009,0.00017921,2]
[424287664,1780753832000,-11523.71328769,0.00017922,2]
[424287661,1780753832000,-236.25621847,0.00017921,2]
[424287659,1780753832000,-500.0,0.00017921,2]
[424287757,1780753838000,-151.0,0.000195,2]
[424287754,1780753838000,-151.0,0.000195,2]
[424287759,1780753838000,-151.0,0.000195,2]
[424287756,1780753838000,-151.0,0.000195,2]
[424287752,1780753838000,-151.0,0.000195,2]
[424287746,1780753838000,-151.0,0.000195,2]
[424287744,1780753838000,-151.0,0.000195,2]
[424287738,1780753838000,-190.486374,0.00019495,2]
[424287724,1780753838000,-3476.28671221,0.00017922,2]
[424287742,1780753838000,-151.0,0.000195,2]
[424287736,1780753838000,-3611.5165082,0.00019491,2]
[424287726,1780753838000,-1200.0,0.00018632,2]
[424287734,1780753838000,-213.40147637,0.00019278,2]
[424287723,1780753838000,-5000.0,0.00017743,2]
[424287732,1780753838000,-263.756903,0.00019076,2]
[424287730,1780753838000,-223.18,0.00018633,2]
[424287728,1780753838000,-505.63870615,0.00018633,2]
[424287762,1780753838000,-151.0,0.000195,2]
[424287740,1780753838000,-4705.03761908,0.00019497,2]
[424287765,1780753838000,-151.0,0.000195,2]
[424287748,1780753838000,-151.0,0.000195,2]
[424287767,1780753838000,-500.0,0.00019503,2]
[424287773,1780753838000,-500.0,0.00019503,2]
[424287805,1780753838000,-8716.4563629,0.000196,2]
[424287803,1780753838000,-151.0,0.000196,2]
[424287807,1780753838000,-61236.60095773,0.000196,2]
[424287801,1780753838000,-151.0,0.000196,2]
[424287799,1780753838000,-151.0,0.000196,2]
[424287792,1780753838000,-7036.85132231,0.00019504,2]
[424287790,1780753838000,-12827.99261039,0.00019504,2]
[424287797,1780753838000,-151.0,0.000196,2]
[424287795,1780753838000,-5459.1886687,0.00019504,2]
[424287788,1780753838000,-500.0,0.00019503,2]
[424287750,1780753838000,-151.0,0.000195,2]
[424287784,1780753838000,-500.0,0.00019503,2]
[424287771,1780753838000,-500.0,0.00019503,2]
[424287780,1780753838000,-500.0,0.00019503,2]
[424287782,1780753838000,-500.0,0.00019503,2]
[424287764,1780753838000,-151.0,0.000195,2]
[424287786,1780753838000,-500.0,0.00019503,2]
[424287779,1780753838000,-500.0,0.00019503,2]
[424287775,1780753838000,-387.751538,0.00019503,2]
[424287777,1780753838000,-500.0,0.00019503,2]
[424287769,1780753838000,-500.0,0.00019503,2]
[424288086,1780753840000,-2193.7,0.000196,2]
[424288787,1780753846000,-24.14608723,0.000196,2]
[424288776,1780753846000,-3174.0,0.000196,2]
[424288769,1780753846000,-1778.651535,0.000196,2]
[424288778,1780753846000,-62352.83640738,0.000196,2]
[424293326,1780754513000,-2556.13693787,0.00014249,2]
[424293327,1780754525000,-284.353,0.00014249,2]
[424293328,1780754537000,-284.353,0.00014249,2]
[424293332,1780754731000,-152.0,0.00014249,2]
[424293331,1780754731000,-205.26982633,0.00014249,2]
[424293333,1780754851000,-152.0,0.00014249,2]
[424293334,1780754851000,-1571.36564187,0.00014249,2]
[424293335,1780754852000,-381.92071481,0.00014249,2]
[424293337,1780754957000,-4338.70255795,0.00014249,2]
[424293338,1780754957000,-152.0,0.00014538,7]
[424293336,1780754957000,-3046.71364332,0.00014249,2]
[424293339,1780754957000,-500.0,0.00014538,2]
[424293341,1780754957000,-649.99999999,0.00015809,2]
[424293342,1780754957000,-432.35287534,0.00016642,2]
[424293340,1780754957000,-392.07976699,0.00014538,2]
[424293823,1780755041000,-4376.92457011,0.00014107,2]
[424293825,1780755041000,-152.0,0.00014539,7]
[424293829,1780755041000,-500.0,0.00017474,2]
[424293827,1780755041000,-67.64712466,0.00016642,2]
[424293835,1780755041000,-151.0,0.000191,2]
[424293833,1780755041000,-232.0,0.00018658,3]
[424293831,1780755041000,-180.812198,0.00018034,2]
[424293843,1780755041000,-151.0,0.00019488,2]
[424293849,1780755041000,-1267.67868723,0.000195,2]
[424293845,1780755041000,-151.0,0.00019488,2]
[424293847,1780755041000,-245.93625994,0.000195,2]
[424293839,1780755041000,-5429.5476858,0.00019455,2]
[424293837,1780755041000,-190.486374,0.00019455,2]
[424293841,1780755041000,-168.3888056,0.00019488,2]
[424294050,1780755043000,-1253.3772,0.000195,2]
[424294396,1780755046000,-16608.48314282,0.000195,2]
[424297340,1780755552000,-152.0,0.00014538,7]
[424297350,1780755958000,-152.0,0.00014553,7]
[424297351,1780755958000,-22.70742774,0.0001485,2]
[424297352,1780756041000,-1759.38716513,0.0001485,2]
[424297353,1780756052000,-751.02291016,0.00014702,2]
[424297388,1780756147000,-1375.63584137,0.00014702,2]
[424297488,1780756232000,-397.99798297,0.000191,2]
[424297420,1780756232000,-438.23496928,0.00014702,2]
[424297429,1780756232000,-2435.10627919,0.00014702,2]
[424297430,1780756232000,-454.31858861,0.00015,2]
[424297432,1780756232000,-307.63363939,0.00015964,2]
[424297436,1780756232000,-350.0,0.00016733,2]
[424297434,1780756232000,-179.46457805,0.00016339,2]
[424297438,1780756232000,-228.84083924,0.00016751,2]
[424297440,1780756232000,-1143.05999202,0.00016751,2]
[424297442,1780756232000,-163.602384,0.00017163,2]
[424297444,1780756232000,-500.0,0.0001757,2]
[424297454,1780756232000,-1481.8171065,0.00018555,2]
[424297452,1780756232000,-300.0,0.00018554,2]
[424297446,1780756232000,-283.92,0.00017817,2]
[424297448,1780756232000,-234.0,0.0001811,3]
[424297450,1780756232000,-836.68789203,0.00018528,2]
[424297490,1780756232000,-433.45811007,0.000191,2]
[424297462,1780756232000,-3205.4385142,0.00018671,2]
[424297484,1780756232000,-2867.78413998,0.000191,2]
[424297486,1780756232000,-3531.24336618,0.000191,2]
[424297477,1780756232000,-151.0,0.000191,2]
[424297479,1780756232000,-287.754,0.000191,2]
[424297481,1780756232000,-7609.49285931,0.000191,2]
[424297471,1780756232000,-342.24682696,0.00019099,2]
[424297475,1780756232000,-151.0,0.000191,2]
[424297469,1780756232000,-189.4949645,0.00019026,2]
[424297460,1780756232000,-166.5256422,0.0001867,2]
[424297465,1780756232000,-761.945496,0.00018671,2]
[424297456,1780756232000,-500.0,0.0001867,2]
[424297467,1780756232000,-179.24543092,0.00019026,2]
[424297473,1780756232000,-151.0,0.000191,2]
[424297458,1780756232000,-500.0,0.0001867,2]
[424298075,1780756246000,-18663.91352071,0.000191,2]
[424298074,1780756246000,-5000.0,0.00018909,2]
[424298078,1780756350000,-6856.76496003,0.00018356,2]
[424298092,1780756886000,-553.87209491,0.00015913,2]
[424298097,1780756939000,-1159.81487735,0.00015913,2]
[424298100,1780756992000,-193.0,0.00016493,3]
[424298104,1780757045000,-593.23473498,0.00016733,2]
[424298105,1780757099000,-291.5432292,0.00017602,2]
[424298108,1780757152000,-152.0,0.00014558,7]
[424298109,1780757168000,166.66666666,0.00020594,120]
[424298135,1780757205000,-520.09229637,0.00016722,2]
[424298226,1780757234000,-1012.92023472,0.00018356,2]
[424298225,1780757234000,-159.5893865,0.00018338,2]
[424298224,1780757234000,-380.69299088,0.00016722,2]
[424298222,1780757234000,-159.0,0.00015945,3]
[424298223,1780757234000,-243.88740156,0.00016722,2]
[424298227,1780757236000,-240.09513483,0.00018356,2]
[424298228,1780757253000,-2265.98888712,0.00018356,2]
[424298229,1780757253000,-377.87407353,0.00018479,2]
[424298230,1780757253000,-16.49908223,0.00018663,2]
[424298231,1780757254000,-249.20903989,0.00018663,2]
[424298339,1780757432000,-689.78558042,0.00018476,2]
[424298330,1780757432000,-401.89688604,0.00018476,2]
[424298573,1780757439000,-500.0,0.00018799,2]
[424298577,1780757439000,-500.0,0.00018799,2]
[424298585,1780757439000,-500.0,0.00018799,2]
[424298583,1780757439000,-500.0,0.00018799,2]
[424298571,1780757439000,-500.0,0.00018799,2]
[424298561,1780757439000,-500.0,0.00018799,2]
[424298581,1780757439000,-595.33859756,0.00018799,2]
[424298569,1780757439000,-500.0,0.00018799,2]
[424298567,1780757439000,-500.0,0.00018799,2]
[424298563,1780757439000,-500.0,0.00018799,2]
[424298565,1780757439000,-500.0,0.00018799,2]
[424298559,1780757439000,-500.0,0.00018799,2]
[424298537,1780757439000,-217.33496738,0.00018709,2]
[424298575,1780757439000,-500.0,0.00018799,2]
[424298557,1780757439000,-500.0,0.00018799,2]
[424298555,1780757439000,-500.0,0.00018799,2]
[424298541,1780757439000,-479.55,0.00018761,2]
[424298543,1780757439000,-500.0,0.00018799,2]
[424298549,1780757439000,-500.0,0.00018799,2]
[424298553,1780757439000,-500.0,0.00018799,2]
[424298551,1780757439000,-500.0,0.00018799,2]
[424298545,1780757439000,-397.37655912,0.00018799,2]
[424298547,1780757439000,-500.0,0.00018799,2]
[424298535,1780757439000,-500.0,0.00018667,2]
[424298531,1780757439000,-305.60222935,0.00018476,2]
[424298533,1780757439000,-518.8702298,0.00018476,2]
[424298539,1780757439000,-475.82,0.00018712,2]
[424298579,1780757439000,-500.0,0.00018799,2]
[424298620,1780757439000,-500.0,0.00018799,2]
[424298592,1780757439000,-413.7003457,0.00018799,2]
[424298644,1780757439000,-3793.16810757,0.000188,2]
[424298641,1780757439000,-67885.97396018,0.000188,2]
[424298639,1780757439000,-5675.56544906,0.000188,2]
[424298635,1780757439000,-1401.17016207,0.000188,2]
[424298637,1780757439000,-36969.38411472,0.000188,2]
[424298631,1780757439000,-500.0,0.00018799,2]
[424298629,1780757439000,-500.0,0.00018799,2]
[424298633,1780757439000,-477.54313657,0.00018799,2]
[424298625,1780757439000,-500.0,0.00018799,2]
[424298589,1780757439000,-500.0,0.00018799,2]
[424298622,1780757439000,-500.0,0.00018799,2]
[424298616,1780757439000,-500.0,0.00018799,2]
[424298618,1780757439000,-560.08533612,0.00018799,2]
[424298624,1780757439000,-500.0,0.00018799,2]
[424298612,1780757439000,-500.0,0.00018799,2]
[424298587,1780757439000,-500.0,0.00018799,2]
[424298598,1780757439000,-500.0,0.00018799,2]
[424298614,1780757439000,-500.0,0.00018799,2]
[424298591,1780757439000,-500.0,0.00018799,2]
[424298600,1780757439000,-500.0,0.00018799,2]
[424298604,1780757439000,-500.0,0.00018799,2]
[424298596,1780757439000,-500.0,0.00018799,2]
[424298606,1780757439000,-207.75646935,0.00018799,2]
[424298602,1780757439000,-500.0,0.00018799,2]
[424298608,1780757439000,-500.0,0.00018799,2]
[424298610,1780757439000,-500.0,0.00018799,2]
[424298594,1780757439000,-500.0,0.00018799,2]
[424298627,1780757439000,-500.0,0.00018799,2]
[424298876,1780757441000,-604.3101587,0.000188,2]
[424299161,1780757443000,-3895.008806,0.000188,2]
[424299196,1780757444000,-368.98665842,0.000188,2]
[424301899,1780757594000,-5000.0,0.00010781,2]
[424301901,1780757647000,-1176.00011511,0.0001089,2]
[424301902,1780757700000,-151.0,0.00011,2]
[424301906,1780757754000,-151.0,0.000118,2]
[424301907,1780757807000,-3883.70882206,0.00012474,2]
[424301919,1780757861000,-151.0,0.000126,2]
[424301920,1780757914000,-932.0,0.00012721,2]
[424301922,1780757967000,-297.25874364,0.00012722,2]
[424301923,1780758021000,-300.0,0.00012722,2]
[424301924,1780758074000,-4113.64582356,0.00012595,2]
[424301927,1780758354000,-152.0,0.00012595,2]
[424301926,1780758354000,-205.26982633,0.00012469,2]
[424301928,1780758425000,-609.76484762,0.00012469,2]
[424301931,1780758437000,-251.11656999,0.00012722,2]
[424301929,1780758437000,-1343.52150906,0.00012469,2]
[424301930,1780758437000,-152.0,0.00012595,2]
[424301932,1780758463000,-48.88343001,0.00012722,2]
[424301933,1780758516000,-153.42214265,0.00012722,2]
[424301936,1780758533000,-146.57785735,0.00012722,2]
[424301960,1780758558000,-300.0,0.00012722,2]
[424301957,1780758558000,-300.0,0.00012722,2]
[424301961,1780758558000,-300.0,0.00012722,2]
[424301959,1780758558000,-300.0,0.00012722,2]
[424301958,1780758558000,-300.0,0.00012722,2]
[424301956,1780758558000,-300.0,0.00012722,2]